Cogmind - Beta 11.1 *** ADVENTURER MODE // 2022.04.23 @ 17:05:14 Player: Olexender Result: Destroyed by G-47 Trooper with Particle Gun Performance ------------- Evolutions (3) 1500 Regions Visited (6) 1200 Robots Destroyed (126) 630 Value Destroyed (3802) 3802 Prototype IDs (34) 680 Alien Tech Used (0) 0 Bonus (652) 652 TOTAL SCORE: 8464 Bonus ------- High Alert Combat Kills 352 Aligned with FarCom 300 Cogmind --------- Core Integrity 0/700 Matter 226/300 Energy 479/480 System Corruption 2% Temperature Cool (9) Movement Rolling (130) Ox2 Location -7/Factory Parts ------- > --- POWER (2) -------- Improved Deuterium Engine Improved Deuterium Engine > --- PROPULSION (3) --- Armored Huge Wheel > --- UTILITY (5) ------ Improved Cooling System Large Storage Unit Advanced Targeting Computer Improved Medium Armor Plating Hacking Suite > --- WEAPON (3) ------- Improved EM Shotgun Cooled Particle Cannon Gauss Cannon > --- INVENTORY (15) --- Heavy Deuterium Engine Machine Analyzer Improved Terrain Scanner Improved Field Recycling Unit (0) EM Shotgun Shock Rifle Cooled Particle Cannon Cooled Particle Cannon Autogun Remote Datajack Peak State ------------ > --- POWER ------------ Improved Ion Engine Heavy Ion Engine > --- PROPULSION ------- Wheel Compact Wheel Compact Wheel > --- UTILITY ---------- Huge Storage Unit Advanced Visual Processing Unit Seismic Detector Modified TNC Improved Targeting Computer > --- WEAPON ----------- YOLO Cannon Minigun > --- INVENTORY -------- Cooling System High-capacity Battery High-capacity Matter Pod Advanced Weight Redist. System Structural Scanner Sensor Array Terrain Scanner Advanced ECM Suite Hacking Suite System Restoration Module Trap Reconfigurator Improved Field Recycling Unit Heavy EM Pulse Gun Heavy EM Pulse Gun Heavy EM Shotgun Heavy EM Shotgun Heavy Assault Rifle Enhanced Autogun Gauss Rifle Flak Cannon Flak Cannon Flak Cannon Gauss Cannon Mining Laser [Rating: 51] Favorites ----------- Power Improved Ion Engine Engine Improved Ion Engine Propulsion Compact Wheel Treads Light Treads Wheel Compact Wheel Utility Seismic Detector Device Seismic Detector Storage High-capacity Storage Unit Processor Modified TNC Hackware Hacking Suite Protection Improved Medium Armor Plating Weapon Assault Rifle Energy Gun Heavy EM Pulse Gun Energy Cannon YOLO Cannon Ballistic Gun Assault Rifle Ballistic Cannon Flak Cannon Launcher Advanced EMP Blaster Special Weapon Remote Datajack Build | -11 -10 -10 -10 -9 -8 -7 ------- Run | Scr Mat Min Exi Min Mat Fac Slots Evolved 6 | . . . . . 4 2 Power 1 | . . . . . 1 . Propulsion 1 | . . . . . 1 . Utility 3 | . . . . . 1 2 Weapon 1 | . . . . . 1 . Parts Attached 87 | 9 7 2 . 5 18 46 Power 13 | 1 1 . . 1 3 7 Engine 13 | 1 1 . . 1 3 7 Core . | . . . . . . . Reactor . | . . . . . . . Propulsion 18 | 3 3 . . 1 2 9 Treads 1 | . . . . . . 1 Leg . | . . . . . . . Wheel 17 | 3 3 . . 1 2 8 Hover . | . . . . . . . Flight . | . . . . . . . Utility 28 | 3 2 . . 2 5 16 Device 15 | 2 . . . 1 4 8 Storage 6 | 1 2 . . . . 3 Processor 5 | . . . . 1 1 3 Hackware 1 | . . . . . . 1 Protection 1 | . . . . . . 1 Artifact . | . . . . . . . Weapon 28 | 2 1 2 . 1 8 14 Energy Gun 11 | . 1 1 . . 3 6 Energy Cannon 3 | . . . . 1 1 1 Ballistic Gun 8 | 2 . 1 . . 1 4 Ballistic Cannon 4 | . . . . . 2 2 Launcher 1 | . . . . . 1 . Special Weapon 1 | . . . . . . 1 Impact Weapon . | . . . . . . . Slashing Weapon . | . . . . . . . Piercing Weapon . | . . . . . . . Special Melee Weapon . | . . . . . . . Unidentified Prototypes 9 | . . . . . 5 4 Parts Lost 32 | . . 2 . 3 2 25 Power 5 | . . . . 1 . 4 Propulsion 8 | . . . . 1 1 6 Utility 9 | . . . . 1 . 8 Weapon 10 | . . 2 . . 1 7 Highest Loss Streak 14 | . . 2 . 3 1 14 To Critical Strikes . | . . . . . . . Average Slot Usage (%) 91 | . 100 99 100 94 85 88 Engine 14 | . 14 14 14 13 18 13 Wheel 22 | . 28 28 28 27 24 16 Device 10 | . 14 14 14 11 9 9 Storage 8 | . 14 14 14 14 9 3 Processor 8 | . . . . 1 9 14 Hackware 2 | . . . . . . 5 Protection 1 | . . . . . . 2 Energy Gun 7 | . 2 14 14 10 2 7 Energy Cannon 3 | . . . . 3 9 3 Ballistic Gun 7 | . 25 13 14 10 1 1 Ballistic Cannon 2 | . . . . . 1 5 Naked Turns . | . . . . . . . Heaviest Build 117 | 15 53 53 53 67 80 117 Greatest Support 48 | 32 32 32 32 32 48 42 Greatest Overweight (x) 3 | . 1 1 1 2 2 3 Average Overweight (x) . | . . 1 1 1 1 . Largest Inventory Capacity 25 | 8 20 20 20 20 20 25 Average Capacity 14 | 7 13 20 20 20 20 10 Most Carried 25 | 8 19 19 20 20 20 25 Average Carried 12 | 4 10 18 19 18 18 8 Final Capacity 20 | 8 20 20 20 20 20 15 Final Carried 20 | 8 19 18 20 16 20 10 Class Distribution -------------------- 50% | Mutant 11% | Hacker-Gunner 10% | Skirmisher 8% | Hacker-Mutant 7% | Hacker-Skirmisher 6% | Gunner 5% | Scavenger-Skirmisher Dominant Class ---------------- Mutant | -10/Materials Mutant | -10/Mines Mutant | -10/Exiles Mutant | -9/Mines Skirmisher | -8/Materials Hacker-Gunner | -7/Factory Resources | -11 -10 -10 -10 -9 -8 -7 ----------- Run | Scr Mat Min Exi Min Mat Fac Matter Collected 2357 | 310 399 38 6 268 220 1116 Remotely 105 | 105 . . . . . . Salvage Created 4504 | 186 597 174 . 78 1153 2316 Parts 237 | 16 42 14 . . 53 112 Haulers Intercepted 10 | . 1 . . . 5 4 Recyclers Shooed 3 | . 1 . . . . 2 Parts Field Recycled . | . . . . . . . Retrieved Matter . | . . . . . . . Parts Self-Destructed . | . . . . . . . Prevented . | . . . . . . . Kills | -11 -10 -10 -10 -9 -8 -7 ------- Run | Scr Mat Min Exi Min Mat Fac Combat Hostiles Destroyed 93 | . 14 8 . 4 23 44 Guns 37 | . 11 5 . 4 1 16 Cannons 33 | . . . . . 6 27 AOE 16 | . 3 3 . . 9 1 Classes Destroyed 16 | 2 5 . . 1 5 3 Worker 9 | . 1 . . . 3 5 Builder 3 | . . . . . 2 1 Tunneler 6 | 5 . . . . . 1 Hauler 10 | . 1 . . . 5 4 Recycler 5 | 1 1 . . . 1 2 Mechanic 1 | . . . . . . 1 Operator 4 | . . . . . 2 2 Watcher 7 | . 1 . . . 3 3 Swarmer 19 | . 6 6 . . 3 4 Grunt 47 | . 8 2 . . 9 28 Brawler 1 | . . . . . . 1 Duelist 1 | . . . . . 1 . Sentry 12 | . . . . . 8 4 Hunter 4 | . . . . . 2 2 Programmer 5 | . . . . . . 5 Assembled 4 | . . . . 4 . . Best Kill Streak 12 | 6 3 3 . 4 12 5 Combat Bots Only 8 | . 3 3 . 4 8 4 Max Kills in Single Turn 4 | 1 3 3 . 2 4 4 Gunslinging 1 | . 1 . . 1 . . Exploded 3 | . 3 3 . . 3 1 Melee . | . . . . . . . Uniques/NPCs Destroyed . | . . . . . . . Combat | -11 -10 -10 -10 -9 -8 -7 -------- Run | Scr Mat Min Exi Min Mat Fac Damage Taken 3136 | . 286 103 . 244 460 2043 Core 508 | . 66 . . 52 14 376 Absorbed by Shields . | . . . . . . . Regen/Repaired (Parts) 57 | . . . . . . 57 Core Remaining (%) 83 | 100 . . . 52 97 . Volleys Fired 239 | 8 40 9 . 11 33 138 Largest 3 | 2 2 2 . 2 2 3 Hottest 160 | 40 65 65 . 65 150 160 Shots Fired 462 | 16 80 18 . 22 45 281 Gun 290 | 16 80 18 . 22 8 146 Cannon 172 | . . . . . 37 135 Launcher . | . . . . . . . Special . | . . . . . . . Kinetic 252 | 16 67 9 . 11 10 139 Thermal 88 | . . . . . 27 61 Explosive . | . . . . . . . Electromagnetic 122 | . 13 9 . 11 8 81 Robot Hit Streak 34 | 8 11 5 . 9 9 34 Robot Miss Streak 5 | 1 2 2 . 1 5 5 Penetration Max . | . . . . . . . Secondary Targets 3 | . 1 1 . 1 . . Max Gunslinging Chain 1 | . 1 1 . 1 . . Shots Hit Robots 354 | 12 59 10 . 19 31 223 Core Hits 268 | 7 28 10 . 7 40 176 Critical Kills 8 | . . . . . 7 1 Critical Parts Destroyed 4 | . 3 . . . . 1 Critical Strikes 16 | . 4 . . . 7 5 Burn 2 | . . . . . . 2 Meltdown 8 | . . . . . 7 1 Destroy 4 | . 3 . . . . 1 Blast 1 | . . . . . . 1 Corrupt 1 | . 1 . . . . . Melee Attacks . | . . . . . . . Impact . | . . . . . . . Slashing . | . . . . . . . Piercing . | . . . . . . . Sneak Attacks . | . . . . . . . Combat Hostiles . | . . . . . . . Follow-up Attacks . | . . . . . . . Damage Inflicted 12365 | 154 870 256 . 259 4427 6399 Guns 3374 | 154 780 146 . 259 43 1992 Cannons 6094 | . . . . . 2718 3376 Explosions 2897 | . 90 110 . . 1666 1031 Melee . | . . . . . . . Ramming . | . . . . . . . Kinetic 3553 | 154 664 52 . 115 157 2411 Thermal 7231 | . 90 110 . . 4227 2804 Explosive . | . . . . . . . Electromagnetic 1581 | . 116 94 . 144 43 1184 Impact . | . . . . . . . Slashing . | . . . . . . . Piercing . | . . . . . . . Highest Corruption 2 | . . . . . . 2 Average Corruption 1 | . . . . . . 1 Corruption Purged . | . . . . . . . Corruption Blocked . | . . . . . . . Effects 10 | . . . . . . 10 Message Errors 2 | . . . . . . 2 Matter Fused 4 | . . . . . . 4 Energy Discharges 1 | . . . . . . 1 Data Loss (minor) 2 | . . . . . . 2 Data Loss (major) 1 | . . . . . . 1 Overload Shots . | . . . . . . . Overflow Damage 895 | . . . . . 539 356 Projectiles 663 | . . . . . 409 254 Explosions 232 | . . . . . 130 102 Melee . | . . . . . . . Knockbacks 19 | . . . . . 1 18 Impact . | . . . . . . . Kinetic 18 | . . . . . 1 17 Secondary 1 | . . . . . . 1 Self-Inflicted Damage 543 | . . 19 . . 213 311 Shots 11 | . . 1 . . 4 6 Rammed . | . . . . . . . Targets Rammed . | . . . . . . . Kicked . | . . . . . . . Crushed . | . . . . . . . Highest Temperature 670 | . 36 57 . 32 221 670 Average Temperature 98 | . 13 19 . 16 68 120 Received Heat Transfer 1080 | . 132 33 . . 81 834 Effects 23 | . . . . . . 23 Shutdowns 7 | . . . . . . 7 Energy Bleed 4 | . . . . . . 4 Interference 3 | . . . . . . 3 Matter Decay 1 | . . . . . . 1 Short Circuit 1 | . . . . . . 1 Damage (minor) 2 | . . . . . . 2 Damage (major) 5 | . . . . . . 5 Siege Activations . | . . . . . . . Robots Corrupted . | . . . . . . . Combat Hostiles . | . . . . . . . Parts Fried 1 | . . . . . . 1 Impact Corruptions . | . . . . . . . Robots Melted 8 | . . . . . 7 1 Combat Hostiles 7 | . . . . . 7 . Parts Melted 15 | . . . . . 11 4 Heat Transferred 6489 | . 50 100 . . 3270 3069 Parts Sabotaged . | . . . . . . . Parts Stolen . | . . . . . . . Parts Stripped . | . . . . . . . Power Chain Reactions 3 | . 1 1 . . . 1 Missiles Intercepted . | . . . . . . . Alert | -11 -10 -10 -10 -9 -8 -7 ------- Run | Scr Mat Min Exi Min Mat Fac Peak Influence 997 | 30 204 210 . 15 997 507 Initial 313 | . 16 28 . . . 313 Average 279 | 11 65 161 . . 481 359 Maximum Alert Level 3 | . 1 1 . . 3 2 Low Security (%) 33 | 100 96 58 . 100 22 . Level 1 34 | . 3 41 . . 15 54 Level 2 27 | . . . . . 31 45 Level 3 4 | . . . . . 29 . Level 4 . | . . . . . . . Level 5 . | . . . . . . . High Security . | . . . . . . . Max Security . | . . . . . . . Squads Dispatched 25 | . 2 . . . 2 21 Investigation 7 | . 2 . . . . 5 Extermination 5 | . . . . . . 5 Reinforcement 8 | . . . . . 2 6 Assault . | . . . . . . . Garrison 5 | . . . . . . 5 Intercept . | . . . . . . . Searches Triggered . | . . . . . . . Construction Impeded 3 | . . . . . 1 2 Haulers Reinforced 1 | . . . . . . 1 Active Scanning Responses . | . . . . . . . Cargo Convoy Interrupts 1 | . . . . . . 1 Stealth | -11 -10 -10 -10 -9 -8 -7 --------- Run | Scr Mat Min Exi Min Mat Fac Distress Signals 6 | . . . . . 4 2 Communications Jammed . | . . . . . . . Distress Signals . | . . . . . . . Times Spotted 113 | . 20 5 . 7 25 56 Peak Tracking Total 6 | . 3 3 . 6 6 4 Tactical Retreats 3 | . 1 . . 1 . 1 Traps | -11 -10 -10 -10 -9 -8 -7 ------- Run | Scr Mat Min Exi Min Mat Fac Traps Triggered 6 | . 1 . . . . 5 Indirectly . | . . . . . . . Trap Hack Attempts . | . . . . . . . Triggered . | . . . . . . . Disarmed . | . . . . . . . Reprogrammed . | . . . . . . . Reused . | . . . . . . . Traps Reconfigurated 6 | . . . . . 6 . Traps Extracted . | . . . . . . . Installed . | . . . . . . . Triggered 2 | . . . . . . 2 Machines | -11 -10 -10 -10 -9 -8 -7 ---------- Run | Scr Mat Min Exi Min Mat Fac Machines Disabled 25 | . 1 . . . 11 13 Max in Single Turn 6 | . 1 . . . 3 6 Machines Sabotaged . | . . . . . . . Garrisons Compromised 1 | . . . . . . 1 Overloaded Fab Kills . | . . . . . . . Hacking | -11 -10 -10 -10 -9 -8 -7 --------- Run | Scr Mat Min Exi Min Mat Fac Machines Accessed 30 | . 6 1 5 . 7 11 Terminals 14 | . 4 1 . . 5 4 Fabricators 2 | . . . . . . 2 Repair Stations 2 | . . . . . . 2 Recycling Units 4 | . 2 . . . . 2 Scanalyzers 3 | . . . . . 2 1 Garrison Access . | . . . . . . . Total Hacks 114 | . 11 3 50 . 26 24 Successful 94 | . 7 3 50 . 20 14 Failed 20 | . 4 . . . 6 10 Catastrophic 1 | . . . . . . 1 Database Lockouts . | . . . . . . . Manual 1 | . . . 1 . . . Terminals 33 | . 9 3 . . 14 7 Fabricators 4 | . . . . . . 4 Repair Stations 4 | . . . . . . 4 Recycling Units 8 | . 2 . . . . 6 Scanalyzers 15 | . . . . . 12 3 Garrison Access . | . . . . . . . Terminal Hacks 70 | . 5 3 50 . 8 4 Record 56 | . 1 2 49 . 2 2 Prototype ID Bank 1 | . . . . . 1 . Open DSF 1 | . . . . . . 1 Branch Access Points 1 | . . . . . 1 . Emergency Access Points 2 | . 2 . . . . . Unreport Threat 1 | . . . . . . 1 Locate Traps 2 | . . . . . 2 . Dispatch Records 1 | . 1 . . . . . Recall Investigation 1 | . . . . . 1 . Hauler Manifests 1 | . 1 . . . . . Registered Prototypes 1 | . . . . . 1 . Zone Layout 1 | . . 1 . . . . EX-Prototype ID Bank 1 | . . . 1 . . . Fabricator Hacks 2 | . . . . . . 2 Load Schematic 1 | . . . . . . 1 Build 1 | . . . . . . 1 Repair Station Hacks 3 | . . . . . . 3 Scan Component 2 | . . . . . . 2 Repair 1 | . . . . . . 1 Recycling Unit Hacks 4 | . 2 . . . . 2 Report Inventory 4 | . 2 . . . . 2 Scanalyzer 15 | . . . . . 12 3 Insert Component 7 | . . . . . 6 1 Analyze 8 | . . . . . 6 2 Garrison Access Hacks . | . . . . . . . Unauthorized Hacks . | . . . . . . . Terminals . | . . . . . . . Fabricators . | . . . . . . . Repair Stations . | . . . . . . . Recycling Units . | . . . . . . . Scanalyzers . | . . . . . . . Garrison Access . | . . . . . . . Data Cores Recovered . | . . . . . . . Used . | . . . . . . . Hacking Detections 21 | . 4 . . . 7 10 Full Trace Events 4 | . 1 . . . . 3 Feedback Events . | . . . . . . . Feedback Blocked . | . . . . . . . Robot Schematics Acquired . | . . . . . . . Robots Built . | . . . . . . . Authchips . | . . . . . . . Time . | . . . . . . . Total Robot Build Rating . | . . . . . . . Part Schematics Acquired 6 | . . . . . 5 1 Parts Built . | . . . . . . . Authchips . | . . . . . . . Time 73 | . . . . . . 73 Total Part Build Rating . | . . . . . . . Parts Repaired 1 | . . . . . . 1 Time 51 | . . . . . . 51 Parts Recycled . | . . . . . . . Recycled Matter . | . . . . . . . Retrieved Matter . | . . . . . . . Retrieved Components . | . . . . . . . Parts Scanalyzed 6 | . . . . . 5 1 Part Schematics Acquired 6 | . . . . . 5 1 Parts Damaged . | . . . . . . . Bothacking | -11 -10 -10 -10 -9 -8 -7 ------------ Run | Scr Mat Min Exi Min Mat Fac Used RIF Installer . | . . . . . . . Robots Hacked . | . . . . . . . Non-combat . | . . . . . . . Combat . | . . . . . . . Robot Hacks Applied . | . . . . . . . Relay Couplers Released . | . . . . . . . Fabnet Peak Effective % . | . . . . . . . Robots Rewired . | . . . . . . . Allies Hacked . | . . . . . . . Hacks Repelled . | . . . . . . . Allies | -11 -10 -10 -10 -9 -8 -7 -------- Run | Scr Mat Min Exi Min Mat Fac Total Allies . | . . . . . . . Largest Group . | . . . . . . . Highest-Rated Group . | . . . . . . . Highest-Rated Ally . | . . . . . . . Total Orders . | . . . . . . . Ally Attacks . | . . . . . . . Total Damage . | . . . . . . . Kills . | . . . . . . . Allies Corrupted . | . . . . . . . Allies Melted . | . . . . . . . Intel | -11 -10 -10 -10 -9 -8 -7 ------- Run | Scr Mat Min Exi Min Mat Fac Robot Analysis Total . | . . . . . . . Derelict Logs Recovered 2 | . . 1 . 1 . . Drone Launches . | . . . . . . . Drone Recoveries . | . . . . . . . Exploration | -11 -10 -10 -10 -9 -8 -7 ------------- Run | Scr Mat Min Exi Min Mat Fac Turns Passed 6543 | 115 863 448 725 529 894 2969 Spaces Moved 4717 | 77 616 343 625 392 565 2099 Core 43 | 8 . . . . . 35 Treads 109 | . . . . . . 109 Legs . | . . . . . . . Wheels 4565 | 69 616 343 625 392 565 1955 Hover . | . . . . . . . Flight . | . . . . . . . Fastest Speed 50 | 50 100 115 115 115 108 50 Average Speed 111 | 85 106 115 115 118 113 110 Slowest Speed 240 | 100 115 115 115 130 130 240 Overloaded Moves . | . . . . . . . Propulsion Burnouts . | . . . . . . . Robots Hopped . | . . . . . . . Cave-ins Triggered . | . . . . . . . Exploration Rate (%) 64 | 4 79 94 93 87 51 41 Regions Visited 6 Branch Regions 3 Pre-discovered Areas 1 | . . . 1 . . . Known Exits Taken . | . . . . . . . Unknown Exits Taken 6 | 1 1 1 1 1 1 . Scrap Searched 6 | . . 3 . 3 . . Spaces Dug . | . . . . . . . Terrain Destroyed 490 | . 4 4 . . 301 181 Melee . | . . . . . . . Projectile 10 | . . . . . 4 6 AOE 480 | . 4 4 . . 297 175 Terrain Rammed . | . . . . . . . Walls Destroyed . | . . . . . . . Machines Disabled . | . . . . . . . Actions | -11 -10 -10 -10 -9 -8 -7 --------- Run | Scr Mat Min Exi Min Mat Fac Total 5508 | 108 749 378 633 436 718 2486 Wait 305 | . 48 24 . 19 76 138 Move 4711 | 76 615 342 624 391 564 2099 Hop . | . . . . . . . Pick Up 114 | 15 23 1 5 4 18 48 Fast Attach 3 | . . . . . . 3 Attach 50 | 7 . 2 . 4 7 30 Detach 3 | . . . . 2 . 1 Swap 35 | 2 7 . . 1 11 14 Drop 48 | . 16 . 4 4 9 15 Fire 239 | 8 40 9 . 11 33 138 Melee . | . . . . . . . Ram . | . . . . . . . Kick . | . . . . . . . Crush . | . . . . . . . Escape Stasis . | . . . . . . . Rewire . | . . . . . . . Trap . | . . . . . . . Miscellaneous . | . . . . . . . Route ------- -11/Scrapyard -10/Materials (discovered 3 exits: [*Mat x2] / *Min) -10/Mines (discovered 3 exits: [*Mat x2] / *Exi) -10/Exiles -9/Mines -8/Materials -7/Factory History --------- Turn | Location | Event 12 | -11/Scrapyard | Discovered new exit (range 16) 116 | -11/Scrapyard | Entered Materials 304 | -10/Materials | Build established: Mutant 442 | -10/Materials | Discovered new exit (range 10) 788 | -10/Materials | Discovered new exit (range 5) 924 | -10/Materials | Discovered new exit (range 10) 979 | -10/Materials | Entered Mines 1086 | -10/Mines | Discovered new exit (range 8) 1196 | -10/Mines | Discovered new exit (range 6) 1328 | -10/Mines | Learned Materials emergency access door positions 1422 | -10/Mines | Deemed a non-threat by the Exiles lab entrance 1422 | -10/Mines | Discovered new exit (range 5) 1427 | -10/Mines | Entered Exiles 1457 | -10/Exiles | Met 8R-AWN 1476 | -10/Exiles | Met EX-HEX 1534 | -10/Exiles | Met EX-BIN 1553 | -10/Exiles | Aligned with FarCom system 1554 | -10/Exiles | Given EX-Vault access code 1605 | -10/Exiles | Opened EX-Vault 1610 | -10/Exiles | Found Prototype Processor 1618 | -10/Exiles | Found Prototype Device 1625 | -10/Exiles | Found Prototype Energy Cannon 1657 | -10/Exiles | Identified Modified TNC 1657 | -10/Exiles | Identified Trap Reconfigurator 1657 | -10/Exiles | Identified YOLO Cannon 1679 | -10/Exiles | Warned to stay clear of 0b10 Research branches 1711 | -10/Exiles | Met EX-DEC 1720 | -10/Exiles | Learned location of Zion (-7) 1827 | -10/Exiles | Visited The Gauntlet 2137 | -10/Exiles | Discovered new exit (range 14) 2152 | -10/Exiles | Stole three prototypes: Modified TNC, Trap Reconfigurator, YOLO Cannon 2152 | -10/Exiles | Entered Mines 2454 | -9/Mines | Assembled infested the area 2511 | -9/Mines | Lost 3 parts (1p1n1u) 2675 | -9/Mines | Discovered new exit (range 6) 2681 | -9/Mines | Entered Materials 2681 | -8/Materials | Evolved 4 slots: Power x1, Propulsion x1, Utility x1, Weapon x1 3067 | -8/Materials | Destroyed 8 combat bots 3567 | -8/Materials | Discovered new exit (range 4) 3575 | -8/Materials | Entered Factory 3575 | -7/Factory | Evolved 2 slots: Utility x2 3577 | -7/Factory | FarCom data flow suspended 4235 | -7/Factory | Core integrity fell below 50% 4270 | -7/Factory | Core integrity fell below 20% 4286 | -7/Factory | Garrison activated, responded to threat 4337 | -7/Factory | Lost 14 parts (2p3n5u4w) 4397 | -7/Factory | Garrison activated, responded to threat 4810 | -7/Factory | Build established: Scavenger-Skirmisher 5241 | -7/Factory | Cargo convoy interrupted 5308 | -7/Factory | Build established: Hacker-Mutant 5698 | -7/Factory | Build established: Hacker-Skirmisher 5742 | -7/Factory | Garrison activated, responded to threat 6207 | -7/Factory | Build established: Hacker-Gunner 6430 | -7/Factory | Repaired Imp. EM Shotgun 6544 | -7/Factory | Destroyed by G-47 Trooper with Particle Gun Last Messages --------------- Scanning Imp. EM Shotgun... Ready to Repair: Imp. EM Shotgun Rating: 2p Time: 51 >>Repair Repairing Imp. EM Shotgun... ETC: 51 06426_ System corrupted: Matter fused (-10). 06430_ Repair station completes Imp. EM Shotgun repairs. 06430_ Acquired Imp. EM Shotgun. 06447_ Acquired EM Shotgun. 06461_ Acquired Imp. Terrain Scanner. 06498_ Dropped Med. Storage Unit. 06502_ System corrupted: Matter fused (-8). 06531_ Destroyed Lgt. Nuclear Core. 06531_ G-47 Trooper destroyed. 06533_ Wheel destroyed. 06537_ R-06 Scavenger collects Aluminum Leg. 06544_ EBR 7XY0VQJW/UM#P%BJ|9O< Map ----- +----------------------------------------------------+ | ????????????????# #??????????????# #??? | | ????????????????# #??????????????# #??? | | ???????########## ################ ! #??? | | ???????# ## = = + #??? | | ???????# """ ## !######## # #??? | | ???????# """ ## T#?????# ####+##+##+###??? | | ???????# """ ## #?????# #????? | | ???????# ## ##?????# ##### #????? | | ???????# =## ########+##+##+##### #????? | | ???????# ## % + # #????? | | ???????#= ## ####"####### # #????? | | ???????# "F"" ## # #???# # ###### | | ######## "" " ## # #???# # | | # # "# # #???# # | | # #""""""""# # #???# """ """ + | | # !! " ! # #???# """ """ # | | # ! " % = ## #???# """ """ # | | # # "########???# "" "" ####+### | | # + ##########??# "" "" ## | | ###+#### [ % #??# ## | | # ### =%= %t w #??# ## | | ""# ### r g ################## | | "# ### %g ## # # | | "# ### ## """ =# """ # | | ## ### ####+######; + """ #! """"" # | | # # ?? ?????# @## """ # """"" # | | # # ?? ?????# ## # # | | # # ?????????# #####/### """ # | | # ## ?????????# #?# # """"" # | | # ##??????????# ### # """"" # | | %+ ##?????????+ + # | | # ######?????????##t###### # """ # | | ## #####???????????# ?????# # """"" ####### | | ##????????????# ?????####### """"" #?????? | | ##????????????#????????????# #?????? | | ##?????????????????????????# """ #?????? | | ##?????????????????????????# """"" #?????? | | ! #??????????????????????????# """"" #?????? | | #??????????????????????????# #?????? | | % #??????????????????????????# #?????? | | # ##??????????????????????????###+########???? | | # % #????????????????????????????# = #???? | | # #????????????????????????????# #???? | | # #????????????????????????????# """ #???? | | ? #????????????????????????????# """ #???? | | ? #????????????????????????????# """ !! #???? | | ? #????????????????????????????# !! #???? | | ? ????????????????????????????# ! #???? | | ?? ????????????????????????????# #???? | | ?? ???????????????????????????????#####/######### | +----------------------------------------------------+ Best States ------------- Heat Dissipation 61 Energy Generation 27 Energy Capacity 480 Matter Stores 300 Matter Capacity 300 Sight Range 20 Robot Scan Range 14 Terrain Scan Density 10 Armor Coverage 225 Resistance: KI 20 Resistance: TH 20 Resistance: EX 20 Resistance: EM 20 Resistance: I 20 Resistance: S 20 Resistance: P 20 Evasion (%) 44 Targeting Accuracy 8 Recoil Reduction 1 Offensive Hacking 20 Item Schematics ----------------- Cooling System | -8/Materials | Scanalyzed Adv. Weight Redist. System | -8/Materials | Scanalyzed Adv. Visual Processing Unit | -8/Materials | Scanalyzed Hvy. EM Pulse Gun | -8/Materials | Scanalyzed Adv. ECM Suite | -8/Materials | Scanalyzed Remote Datajack | -7/Factory | Scanalyzed Robot Schematics ------------------ None Fabricated ------------ Nothing Alien Tech Used ----------------- None Achievements -------------- None Challenges ------------ None Game ------ Seed CombatFluxVibroblade Manual? 0 Play Time 01:23:01 Cumulative 36.9 hours Start 2022.04.22 @ 20:29:29 End 2022.04.23 @ 17:05:14 Sessions 3 Manual Loads 0 Difficulty Adventurer Special Mode None Game No. 36 Rogue 0 Adventurer 36 Explorer 0 Win Type - Total 0 Types 0/0/0/0/0/0/0/0/0 Lore% 32 Gallery% 41 Achievement% 28 Wizard Run 0 Options --------- ASCII 0 Keyboard 0 Movement Mouse Keybinds 0 Fullscreen 1 Font 24/Crisp Map View 113x50 Tactical HUD 1 Map Filters NONE Filters NONE Steam 1 RUN: f889f3a4-4c2d-4063-8fd8-580a7ba5afb7